[Event "ChessKid Cup Div-I 2023"]
[Site "Online"]
[Date "2023.05.24"]
[Round "52.1"]
[White "Caruana, Fabiano"]
[Black "Firouzja, Alireza"]
[Result "1-0"]
[ECO "D87"]
[WhiteElo "2764"]
[BlackElo "2785"]
[Annotator "TA"]
[PlyCount "117"]
[EventDate "2023.05.21"]
[EventType "k.o."]
[EventCountry "NET"]
[SourceTitle "playchess.com"]
[Source "ChessBase"]
[SourceQuality "1"]
[TimeControl "900+3"]

{[%evp 19,117,18,28,0,2,-35,-18,-50,-22,-11,-10,-14,9,0,1,6,10,0,0,-29,-5,-49,-24,-55,-51,-43,-37,-91,-95,-98,-83,-120,-96,-137,-38,-91,-81,-145,0,-100,0,-152,-128,-120,-115,-266,-271,-233,-254,-282,-285,-1326,-1201,-1125,-1099,-919,-221,-326,-309,-385,-367,-337,-312,-309,-306,-283,0,-303,-287,-433,-301,-295,-267,-314,-306,-415,-279,-275,-264,-307,-249,-288,-277,-657,0,0,0,0,0,0,0,-420,-402,-332,-311,-304,29975,29972,29998,29999]} 1. d4 {[%emt 0:00:04]} Nf6 {[%emt 0:00:07]} 2. c4 {[%emt 0:00:01]} g6 {[%emt 0:00:01]} 3. Nc3 {[%emt 0:00:06]} d5 {[%emt 0:00:01]} 4. cxd5 {[%emt 0:00:01]} Nxd5 {[%emt 0:00:01]} 5. e4 {[%emt 0:00:02]} Nxc3 {[%emt 0:00:00]} 6. bxc3 {[%emt 0:00:00]} Bg7 {[%emt 0:00:01]} 7. Bc4 {[%emt 0:00:01]} c5 {[%emt 0:00:04]} 8. Ne2 {[%emt 0:00:01]} O-O {[%emt 0:00:04]} 9. O-O {[%emt 0:00:03]} Nc6 {[%emt 0:00:04]} 10. Be3 {[%emt 0:00:01]} b6 {[%emt 0:00:07] 10...Bg4 is setting a new trend.} 11. Qd2 {[%emt 0:00:40] D87: Exchange Grünfeld: Classical Line: Variations without ...cxd4.} Bb7 {[%emt 0:00:10]} 12. h4 $5 {[%emt 0:00:03][%mdl 4] Leaves trodden paths.} Rc8 {[%emt 0:00:46]} 13. Rac1 {[%emt 0:01:38] The position is equal.} Na5 {[%emt 0:01:50]} 14. Bd3 {[%emt 0:00:05][%cal Oh4h5]} e5 {[%emt 0:00:45]} 15. Bg5 {[%emt 0:03:22] [#]} f6 $146 {[%emt 0:00:14]} ({Predecessor:} 15... Qd7 16. d5 c4 17. Bc2 f6 18. Be3 Ba6 19. h5 Rf7 20. hxg6 hxg6 21. f4 Nb7 {1-0 Sultan,I (2090)-Fong,Y (2125) Asian Cities-chT 2019 (2.4)}) 16. Bh6 {[%emt 0:00:33]} cxd4 {[%emt 0:00:59]} 17. cxd4 {[%emt 0:00:04]} exd4 {[%emt 0:00:03]} 18. Bxg7 {[%emt 0:00:38]} Kxg7 {[%emt 0:00:02]} 19. h5 {[%emt 0:00:02]} Qd6 {[%emt 0:01:25]} 20. Nf4 {[%emt 0:00:48] Strongly threatening hxg6.} Qe5 {[%emt 0:01:14]} 21. Rfe1 {[%emt 0:00:24][%cal Oh5h6]} (21. hxg6 {simplifies} hxg6 22. f3 Rxc1 23. Rxc1 Rc8 24. Rd1) 21... Rxc1 {[%emt 0:00:44]} 22. Rxc1 {[%emt 0:00:03][%cal Oh5h6]} Rc8 {[%emt 0:00:04]} (22... Bxe4 $2 23. Bxe4 Qxe4 24. Re1 $18) 23. Nd5 {[%emt 0:02:09]} Rxc1+ $17 {[%emt 0:02:20]} (23... Qxh5 $6 24. Rxc8 Bxc8 25. Qc1 $11) 24. Qxc1 {[%emt 0:00:00]} gxh5 {[%emt 0:00:01]} (24... Qxh5 25. Qc7+ Kh6 26. Nxf6 Qd1+ 27. Kh2) 25. Nf4 {[%emt 0:01:15]} Bc6 {[%emt 0:00:42]} (25... Bxe4 $6 26. Bxe4 Qxe4 27. Qc7+ Kh6 28. Qd6 Qe1+ 29. Kh2 $11) 26. Be2 {[%emt 0:00:25]} Be8 {[%emt 0:00:09]} (26... Qxe4 27. Nxh5+ Kf7 28. Bf1 $15) (26... h4 $17 27. Nh5+ Kg6) 27. g3 {[%emt 0:00:59]} (27. Qc8 $1 $15) 27... Nb7 {[%emt 0:01:49] ...h4 would be deadly.} (27... Qxe4 28. Qc7+ Bf7 29. Bxh5 Qe1+ 30. Kg2 $11) 28. Qa3 {[%emt 0:00:24]} (28. Qc8 $142 Nc5 29. Qa8) 28... Na5 {[%emt 0:00:24]} (28... Qxe4 $6 29. Bf3 Qe1+ 30. Kg2 $11) 29. Qc1 $1 {[%emt 0:00:17]} Nb7 {[%emt 0:00:27]} (29... Qxe4 30. Qc7+ Bf7 31. Bxh5 Qe1+ 32. Kg2 $11) (29... Nc6 $142 $1 30. Bxh5 Qxe4 31. Bxe8 Qxe8) 30. Qa3 $1 {[%emt 0:00:01]} a5 $1 {[%emt 0:00:01]} (30... Qxe4 31. Bf3 Qe1+ 32. Kg2 $11) 31. Qb3 {[%emt 0:00:02]} b5 {[%emt 0:00:08] aiming for ...Nd6.} (31... Qxe4 $6 32. Qxb6 Bc6 33. f3 $11) 32. Qc2 $2 {[%emt 0:00:38]} (32. Ne6+ $17 Kh6 33. Nf4) 32... Bf7 $1 $19 {[%emt 0:00:18][%cal Oh5h4]} 33. Qc6 {[%emt 0:00:25]} Nc5 {[%emt 0:00:29]} 34. Qxb5 {[%emt 0:00:10]} h4 $1 {[%emt 0:00:11]} (34... Nxe4 35. Qd7 $17) 35. Bc4 $2 {[%emt 0:00:51]} (35. a3) 35... hxg3 {[%emt 0:00:22]} (35... Nxe4 36. Qd7 Nd6 37. Bxf7 Nxf7 38. Ne6+ Kg6 39. Nf4+ Kg7 40. Ne6+ Kg6 41. Nf4+ Kg7 $11) 36. fxg3 {[%emt 0:00:01]} Bxc4 {[%emt 0:00:20]} ({Inferior is} 36... Qg5 37. Bxf7 Kxf7 38. Kh2 $17) 37. Qxc4 {[%emt 0:00:00]} Nxe4 $2 {[%emt 0:00:02][%mdl 4096] Endgame KQN-KQN} (37... d3 {...d2 is the strong threat.} 38. Kf1 d2) 38. Kg2 {[%emt 0:00:03]} (38. Qc8 {was worth a try.} Ng5 39. Qb7+ Kf8 40. a3) 38... Ng5 {[%emt 0:00:04]} 39. Qc6 {[%emt 0:00:14]} Kh6 {[%emt 0:00:14]} 40. Qc8 {[%emt 0:00:01][%cal Rc8f8]} Qe4+ {[%emt 0:00:02]} 41. Kh2 {[%emt 0:00:00][%cal Rc8f8]} Nf3+ {[%emt 0:00:05]} 42. Kh3 {[%emt 0:00:04] Black must now prevent Qf8+.} Ng5+ {[%emt 0:00:01]} 43. Kh2 {[%emt 0:00:00][%cal Rc8f8] [#]} Qe7 {[%emt 0:00:03][%cal Od4d3] Prevents Qf8+.} ({Don't blunder} 43... Nf3+ $2 44. Kh3 Qe7 45. Qf5 $19 (45. Qg4 $2 Ng5+ 46. Kh4 Qe8 $19)) 44. Qg4 {[%emt 0:00:16] Prevents d3} (44. Qf5 {was necessary.}) 44... Qf7 {[%emt 0:00:03]} 45. Qe2 {[%emt 0:00:05]} Kg7 {[%emt 0:00:04]} 46. a4 {[%emt 0:00:04]} Qd7 {[%emt 0:00:02]} 47. Nh5+ {[%emt 0:00:04]} Kg6 {[%emt 0:00:07]} 48. Nf4+ {[%emt 0:00:01]} Kh6 {[%emt 0:00:05]} ({Not} 48... Kg7 $2 49. Qb5 Qc8 50. Qe2 $19) 49. Qb5 {[%emt 0:00:07]} Qc7 {[%emt 0:00:05]} 50. Qf5 {[%emt 0:00:05][%cal Rf5f6] Inhibits Qc2+.} Qe7 {[%emt 0:00:02]} 51. Qxa5 $2 {[%emt 0:00:02] [#]} (51. Qd5) 51... Nf3+ $2 {[%emt 0:00:05]} (51... d3 $1 $19 {[%cal Rd3d2] Threatens to win with ...d2!} 52. Kh1 Qe4+ 53. Kh2 Qe3) 52. Kg2 $11 {[%emt 0:00:02]} Ne5 {[%emt 0:00:01]} 53. Qd5 {[%emt 0:00:02]} Qb4 {[%emt 0:00:05]} 54. Qd8 {[%emt 0:00:02]} Qb7+ {[%emt 0:00:04]} (54... Qxa4 $2 55. Qxf6+ Ng6 56. Ne6 Qa8+ 57. Kh2 Qa2+ 58. Kh3 $18) 55. Kh2 $2 {[%emt 0:00:10][%mdl 8192]} (55. Kg1 $11 Qb1+ 56. Kh2 Qc2+ 57. Kg1) 55... Ng4+ $19 {[%emt 0:00:03]} 56. Kg1 {[%emt 0:00:00] And now Qf8+ would win.} Qb1+ {[%emt 0:00:01]} 57. Kg2 {[%emt 0:00:03]} Qc2+ $4 {[%emt 0:00:01][%mdl 8192]} (57... Qe4+ $19 58. Kg1 Qe1+ 59. Kg2 Ne3+ 60. Kh2 Qf2+ 61. Kh3 Qf1+ 62. Kh4 Qh1+ 63. Nh3 Ng2+ 64. Kg4 Ne3+ 65. Kh4 Ng2+ 66. Kg4 Ne3+ 67. Kh4) 58. Kh3 {[%emt 0:00:04]} f5 {[%emt 0:00:08]} 59. Qf8+ {[%emt 0:00:02] Weighted Error Value: White=0.60/Black=0.49} 1-0

[Event "ChessKid Cup Div-I 2023"]
[Site "Online"]
[Date "2023.05.24"]
[Round "52.1"]
[White "Kollars, Dmitrij"]
[Black "Moussard, Jules"]
[Result "1-0"]
[ECO "C42"]
[WhiteElo "2607"]
[BlackElo "2644"]
[Annotator "TA"]
[PlyCount "85"]
[EventDate "2023.05.21"]
[EventType "k.o."]
[EventCountry "NET"]
[SourceTitle "playchess.com"]
[Source "ChessBase"]
[SourceQuality "1"]
[TimeControl "900+3"]

{[%evp 21,85,13,26,13,21,10,19,27,65,60,59,59,92,45,62,49,118,112,130,65,91,112,106,95,95,63,89,85,101,86,85,94,110,72,83,75,133,129,219,217,592,583,695,684,6098,6111,2343,1950,29984,29985,29985,29986,29986,29983,29989,29981,29990,29986,29985,29986,29997,29997,29997,29998,29998,29999]} 1. e4 {[%emt 0:00:06]} e5 {[%emt 0:00:05]} 2. Nf3 {[%emt 0:00:01]} Nf6 {[%emt 0:00:01]} 3. Nxe5 {[%emt 0:00:11]} d6 {[%emt 0:00:02]} 4. Nf3 {[%emt 0:00:01]} Nxe4 {[%emt 0:00:01]} 5. d4 {[%emt 0:00:06]} d5 {[%emt 0:00:02]} 6. Bd3 {[%emt 0:00:01]} Bd6 {[%emt 0:00:01]} 7. O-O {[%emt 0:00:01]} O-O {[%emt 0:00:01]} 8. c4 {[%emt 0:00:11]} c6 {[%emt 0:00:02]} 9. Nc3 {[%emt 0:00:01]} Nxc3 {[%emt 0:00:02]} 10. bxc3 {[%emt 0:00:00]} dxc4 {[%emt 0:00:09]} 11. Bxc4 {[%emt 0:00:01]} Bf5 {[%emt 0:00:04]} 12. Bg5 $1 {[%emt 0:00:16] 12.Bg5 scores better than 12.Re1. C42: Petroff Defence: 3 Nxe5 and unusual White 3rd moves.} Qa5 {[%emt 0:00:04]} 13. d5 {[%emt 0:00:04] Strongly threatening dxc6.} Qc5 {[%emt 0:00:10]} ({Resist} 13... Qxc3 14. Rc1 Qb4 15. Re1 $14) 14. Bb3 {[%emt 0:00:40] [#] The position is equal.} Be4 $146 {[%emt 0:03:03][%cal Rc6d5]} ({Predecessor:} 14... cxd5 15. Be3 Qc7 16. Qxd5 Be6 17. Qh5 Bxb3 18. axb3 Qxc3 19. Bd4 Qc2 20. Rfc1 Qg6 21. Qxg6 hxg6 22. Bxa7 {½-½ Karjakin,S (2752)-Esipenko,A (2686) RUS-ch 73rd Moscow 2020 (2)}) 15. Be3 {[%emt 0:01:06]} Bxf3 {[%emt 0:04:18]} 16. Qxf3 {[%emt 0:02:42]} Qxc3 {[%emt 0:00:03]} 17. Rac1 $1 {[%emt 0:01:46]} Qe5 {[%emt 0:00:51][%csl Gd6][%cal Re5h2]} 18. g3 {[%emt 0:00:03]} cxd5 {[%emt 0:00:23]} (18... Qe7 $1 $14) 19. Rfd1 $16 {[%emt 0:00:53]} ({Much less strong is} 19. Bxd5 Nc6 $14) 19... Nc6 {[%emt 0:00:37]} 20. Bxd5 {[%emt 0:00:20] A strong pair of Bishops.} (20. Rxd5 $16 Qe7 21. Rcd1) 20... Qe7 {[%emt 0:01:11]} 21. Bxc6 {[%emt 0:00:42]} bxc6 {[%emt 0:00:00]} 22. Rxc6 {[%emt 0:00:00]} Bb4 {[%emt 0:00:30]} 23. h4 {[%emt 0:00:51][%cal Bh2h4,Bh4h5][%mdl 32] White is much more active. The black rooks are badly placed.} a5 {[%emt 0:02:07] [#]} 24. h5 $1 $36 {[%emt 0:00:04][%mdl 2048] White has strong initiative.} Rac8 {[%emt 0:00:49]} 25. h6 {[%emt 0:01:05][%cal Of3g4] Black must now prevent Qg4!} Rxc6 {[%emt 0:00:12]} 26. Qxc6 {[%emt 0:00:00]} Qe6 {[%emt 0:00:06]} 27. Qa4 {[%emt 0:00:54]} gxh6 {[%emt 0:00:17]} 28. a3 {[%emt 0:00:02]} Bc3 {[%emt 0:00:07]} (28... Bd6 $142) 29. Rc1 {[%emt 0:00:24][%mdl 1024] White has strong compensation.} Rc8 {[%emt 0:00:23] [#]} (29... Qf6 $16) 30. Qc2 $1 $18 {[%emt 0:00:01] Bd2 would be deadly.} Rc4 $2 {[%emt 0:00:34]} (30... Kg7 {is more resistant.} 31. Bd4+ Bxd4 32. Qxc8 Qe4) 31. Qd3 {[%emt 0:00:24]} Qc6 {[%emt 0:00:14]} 32. Bd2 {[%emt 0:00:18] Qd8+ is the strong threat.} Bxd2 {[%emt 0:00:05]} 33. Rxc4 {[%emt 0:00:04][%mdl 4096] Endgame KQR-KQB} Qe6 {[%emt 0:00:03]} 34. Re4 {[%emt 0:00:18]} Qa2 {[%emt 0:00:03]} 35. Re8+ {[%emt 0:00:20] White mates.} Kg7 {[%emt 0:00:01]} 36. Qd4+ {[%emt 0:00:00]} f6 {[%emt 0:00:06]} 37. Qd7+ {[%emt 0:00:09]} Kg6 {[%emt 0:00:02]} 38. Qd3+ {[%emt 0:00:14]} Kf7 {[%emt 0:00:04]} 39. Re2 {[%emt 0:00:06]} (39. Qxh7+ $2 {is the wrong capture.} Kxe8 40. Qe4+ Kf7 $19) 39... Qa1+ {[%emt 0:00:01]} 40. Kg2 {[%emt 0:00:07]} Bg5 {[%emt 0:00:02]} 41. Qxh7+ {[%emt 0:00:02]} Kf8 {[%emt 0:00:02]} 42. Qh8+ {[%emt 0:00:01]} Kf7 {[%emt 0:00:00]} 43. Qe8+ {[%emt 0:00:00] Artfully played by Kollars.   Weighted Error Value: White=0.06 (flawless) /Black=0.53} 1-0

[Event "ChessKid Cup Div-I 2023"]
[Site "Online"]
[Date "2023.05.24"]
[Round "52.2"]
[White "Firouzja, Alireza"]
[Black "Caruana, Fabiano"]
[Result "0-1"]
[ECO "D05"]
[WhiteElo "2785"]
[BlackElo "2764"]
[Annotator "TA"]
[PlyCount "72"]
[EventDate "2023.05.21"]
[EventType "k.o."]
[EventCountry "NET"]
[SourceTitle "playchess.com"]
[Source "ChessBase"]
[SourceQuality "1"]
[TimeControl "900+3"]

{[%evp 9,72,4,12,8,9,8,20,20,25,14,15,10,24,14,22,6,6,4,8,0,10,0,0,-7,-10,-15,-6,-48,-56,-47,-56,-56,-58,-62,-21,-25,0,0,0,0,0,0,0,-25,-14,-2,0,-48,0,0,0,0,0,-22,-2,-20,-14,-60,0,0,0,0,-35,-1782,-1623]} 1. d4 {[%emt 0:00:03]} Nf6 {[%emt 0:00:05]} 2. Nf3 {[%emt 0:00:01]} d5 {[%emt 0:00:02]} 3. e3 {[%emt 0:00:00]} e6 {[%emt 0:00:04]} 4. Bd3 {[%emt 0:00:06]} b6 {[%emt 0:00:06]} 5. b3 {[%emt 0:00:03]} Bb7 {[%emt 0:00:02]} 6. Bb2 {[%emt 0:00:02] D05: Colle System with ...e6.} Bd6 {[%emt 0:00:02]} 7. c4 {[%emt 0:00:01]} dxc4 $5 {[%emt 0:00:21][%mdl 4] Exploring less charted territory.} 8. bxc4 {[%emt 0:00:03] The position is equal.} c5 {[%emt 0:00:01]} 9. O-O {[%emt 0:00:16][%cal Od4d5] [#]} cxd4 $146 {[%emt 0:00:17]} ({Predecessor:} 9... O-O 10. Qe2 Re8 11. Nbd2 cxd4 12. exd4 Bf4 13. Rfe1 Nbd7 14. a4 Qc7 15. h3 a5 {½-½ Kovalsky,S (2183)-Lukyanenko,V (2272) UKR-chT20 email 2018 [3]}) 10. exd4 {[%emt 0:00:01]} O-O {[%emt 0:00:01]} 11. Re1 {[%emt 0:00:14]} Nbd7 {[%emt 0:00:03]} 12. Nbd2 {[%emt 0:00:29]} Rc8 {[%emt 0:00:02]} 13. Rc1 {[%emt 0:00:22]} Re8 {[%emt 0:00:13]} 14. Bb1 {[%emt 0:00:41]} Nf8 {[%emt 0:00:38]} 15. Ne5 {[%emt 0:00:53]} Ng6 {[%emt 0:00:11]} 16. Ndf3 {[%emt 0:00:05]} Nd7 {[%emt 0:01:02]} 17. Nxg6 {[%emt 0:01:50]} hxg6 {[%emt 0:00:03]} 18. h4 {[%emt 0:00:00]} Bxf3 {[%emt 0:02:19]} 19. Qxf3 {[%emt 0:00:03]} Qxh4 {[%emt 0:00:01]} 20. g3 {[%emt 0:00:01]} Qh5 {[%emt 0:00:19]} 21. Qd3 {[%emt 0:01:08]} e5 {[%emt 0:01:32] Black is more active.} 22. c5 {[%emt 0:01:24]} bxc5 {[%emt 0:02:15]} (22... e4 {with more complications.} 23. Qd1 bxc5 24. Qxh5 gxh5 25. Rxe4 Red8) 23. dxc5 {[%emt 0:00:14]} Bxc5 {[%emt 0:00:01] [#] And now ...Nf6 would win.} 24. Qxd7 {[%emt 0:00:02]} Bxf2+ {[%emt 0:00:13]} 25. Kxf2 {[%emt 0:00:01]} Rcd8 {[%emt 0:00:01]} 26. Qxe8+ {[%emt 0:00:41]} Rxe8 {[%emt 0:00:03]} 27. Be4 $1 {[%emt 0:00:08]} Rd8 $36 {[%emt 0:00:40][%mdl 2048] Black has good play.} 28. Rc2 {[%emt 0:01:16]} (28. Re2 $11 {is superior.}) 28... Qg5 {[%emt 0:00:54]} (28... f5 $1 $15 29. Bg2 f4 30. Rxe5 (30. Bxe5 $2 {is the wrong capture.} fxg3+ 31. Bxg3 Qf5+ 32. Bf3 Qxc2+ $19) 30... Qh2 31. gxf4 Qxf4+ 32. Ke1 Qh4+ 33. Ke2 Qg3) 29. Bc1 $11 {[%emt 0:00:51] A strong pair of Bishops.} Qg4 {[%emt 0:00:12]} 30. Bf3 {[%emt 0:02:00]} Qe6 {[%emt 0:00:03]} 31. Rce2 {[%emt 0:00:19]} f6 {[%emt 0:00:09]} 32. Be3 {[%emt 0:00:08]} g5 {[%emt 0:01:37]} 33. Bxa7 {[%emt 0:00:30]} (33. Be4 $1 $11) 33... Rd3 {[%emt 0:00:24]} (33... f5 $1 $15) 34. Be4 {[%emt 0:00:23]} Ra3 {[%emt 0:00:20][%csl LRa2,LRa7]} 35. Rd1 {[%emt 0:00:11]} Qg4 {[%emt 0:00:14] Chess con chili.} (35... Rxa7 $2 36. Bd5 $18) 36. Be3 $2 {[%emt 0:00:11][%mdl 8192] [#]} (36. Bg6 $15 Qxg3+ 37. Kf1 Qh3+ 38. Rg2 Qh1+ 39. Bg1 Rf3+ 40. Ke1 Re3+ 41. Kf1) 36... Qxe4 {[%emt 0:00:04] Weighted Error Value: White=0.24 (precise) /Black=0.09 (flawless)} 0-1

[Event "ChessKid Cup Div-I 2023"]
[Site "Online"]
[Date "2023.05.24"]
[Round "52.2"]
[White "Moussard, Jules"]
[Black "Kollars, Dmitrij"]
[Result "1-0"]
[ECO "C83"]
[WhiteElo "2644"]
[BlackElo "2607"]
[Annotator "TA"]
[PlyCount "83"]
[EventDate "2023.05.21"]
[EventType "k.o."]
[EventCountry "NET"]
[SourceTitle "playchess.com"]
[Source "ChessBase"]
[SourceQuality "1"]
[TimeControl "900+3"]

{[%evp 18,83,22,0,0,10,35,54,41,42,33,50,38,31,27,21,47,0,43,56,32,-19,68,22,41,52,48,0,0,0,0,-37,-21,-43,22,11,16,16,14,4,88,102,81,84,199,193,221,222,446,446,462,431,607,416,1154,571,886,890,877,857,29983,29984,29984,29985,29985,29986,29990,29990]} 1. e4 {[%emt 0:00:03]} e5 {[%emt 0:00:04]} 2. Nf3 {[%emt 0:00:02]} Nc6 {[%emt 0:00:01]} 3. Bb5 {[%emt 0:00:02]} a6 {[%emt 0:00:03]} 4. Ba4 {[%emt 0:00:08]} Nf6 {[%emt 0:00:02]} 5. O-O {[%emt 0:00:01]} Nxe4 {[%emt 0:00:06]} 6. d4 {[%emt 0:00:14]} b5 {[%emt 0:00:02]} 7. Bb3 {[%emt 0:00:01]} d5 {[%emt 0:00:00]} 8. dxe5 {[%emt 0:00:19]} Be6 {[%emt 0:00:02]} 9. c3 {[%emt 0:00:24]} Be7 {[%emt 0:00:06] Nowadays more popular than 9...Bc5.} 10. Bc2 {[%emt 0:00:23]} Bg4 {[%emt 0:00:32] C83: Open Ruy Lopez: 9 c3 Be7.} 11. h3 {[%emt 0:02:04] was the old line (11.Qe1).} Bxf3 {[%emt 0:01:15]} 12. gxf3 {[%emt 0:00:12]} Nc5 {[%emt 0:00:41] [#] White is slightly better.} (12... Ng5 13. f4 Ne6 14. Bb3 $16) 13. b4 $146 {[%emt 0:00:05]} ({Predecessor:} 13. f4 Qd7 14. Qf3 f5 15. Be3 O-O 16. Rd1 Rad8 17. b4 Ne4 18. Rxd5 Qe6 19. Rxd8 {1-0 Givon,A (2447)-Veinberg,N (2353) Jeruchess Winter GM 2015 (5)}) 13... Na4 {[%emt 0:01:38]} 14. f4 {[%emt 0:00:21]} ({But not} 14. Bxa4 bxa4 15. f4 (15. Qxa4 Qd7 $15) 15... O-O $11) 14... Qd7 {[%emt 0:00:51]} 15. Qf3 {[%emt 0:00:17]} O-O {[%emt 0:00:26]} 16. Rd1 {[%emt 0:02:10]} Rad8 {[%emt 0:01:49]} 17. Nd2 {[%emt 0:01:30]} (17. Bb3 $1 $14 {feels stronger.}) 17... f6 {[%emt 0:01:16]} 18. Qh5 {[%emt 0:01:27]} f5 {[%emt 0:00:04]} 19. Qf3 {[%emt 0:00:35]} (19. Bxa4 $14 bxa4 20. Qe2) 19... Kh8 {[%emt 0:00:43]} (19... d4 $1 $11 20. Bb3+ Kh8) 20. Nf1 {[%emt 0:00:14]} (20. Qd3 $14) 20... d4 {[%emt 0:00:24]} 21. Bxa4 {[%emt 0:01:46]} bxa4 {[%emt 0:00:00]} 22. Be3 {[%emt 0:00:17]} (22. a3 $14) 22... Qe6 {[%emt 0:00:10]} 23. Bxd4 {[%emt 0:00:55][%cal Be3d4,Bd4c3,Bc3a5][%mdl 32]} Bxb4 $1 {[%emt 0:00:02]} 24. Ne3 {[%emt 0:00:13][%cal Bf1e3,Be3d5,Bd5c7][%mdl 32]} Be7 {[%emt 0:00:04]} 25. Qe2 {[%emt 0:00:26]} Na5 {[%emt 0:02:17] Prevents Qc4} (25... g5 $15) 26. c4 $11 {[%emt 0:00:02]} Nc6 $1 {[%emt 0:01:01]} 27. Bc3 {[%emt 0:00:02]} Bc5 {[%emt 0:00:09]} 28. Nd5 {[%emt 0:00:10]} Ne7 {[%emt 0:00:13]} (28... Rd7 $11 {remains equal.}) 29. Nxc7 $16 {[%emt 0:00:39]} Qc6 {[%emt 0:00:26]} 30. Ba5 {[%emt 0:00:19]} Rxd1+ {[%emt 0:01:04]} (30... a3 $16) 31. Rxd1 $18 {[%emt 0:00:01]} Qh6 {[%emt 0:00:00]} 32. Qf3 {[%emt 0:00:17]} Nc6 $2 {[%emt 0:00:01] [#]} (32... Rc8 33. Rd7 Nc6) 33. Bc3 {[%emt 0:00:08]} (33. Nxa6 Nxe5 34. fxe5 Qg6+ 35. Kh2 Qxa6 $16) 33... Ne7 {[%emt 0:00:17]} 34. Rd7 {[%emt 0:00:16]} Rb8 {[%emt 0:00:32]} (34... Qb6 $142 35. e6 Rg8) 35. Kh2 {[%emt 0:00:11] Active counter play!} Ng6 {[%emt 0:00:17]} (35... Qb6 $142 36. e6 Rg8) 36. e6 {[%emt 0:00:02]} (36. Nxa6 $142 Qxf4+ 37. Qxf4 Nxf4 38. Nxc5) 36... Bf8 {[%emt 0:00:02]} 37. Nd5 {[%emt 0:00:05]} Nh4 {[%emt 0:00:04]} 38. Qg3 {[%emt 0:00:02] [#] White threatens e7 and mate.} Re8 {[%emt 0:00:02] Black is weak on the dark squares} 39. e7 {[%emt 0:00:04] White mates.} Bxe7 {[%emt 0:00:02]} 40. Rxe7 {[%emt 0:00:02]} Rxe7 {[%emt 0:00:05]} 41. Nxe7 {[%emt 0:00:00]} a3 {[%emt 0:00:03]} 42. c5 {[%emt 0:00:01] Weighted Error Value: White=0.36/Black=0.51} 1-0